bitfinex/quotes_BTCUSD_20251012
["timestamp","ask_amount","ask_price","bid_price","bid_amount"]
[1760281241060,0.18687283,112420.0,112400.0,0.09093]
[1760281241280,0.18687176,112440.0,112410.0,0.09093]
[1760281241495,0.27570805,112460.0,112430.0,0.04078]
[1760281241700,0.27570805,112460.0,112440.0,0.09093]
[1760281241701,0.17785786,112450.0,112440.0,0.09093]
[1760281242143,0.17785786,112450.0,112430.0,0.17306952]
[1760281242397,0.17787264,112440.0,112430.0,0.29415142]
[1760281242611,0.17787264,112440.0,112430.0,0.04276]
[1760281243054,0.18676627,112440.0,112410.0,0.11538362]
[1760281243272,0.00014995,112450.0,112420.0,0.18794952]
[1760281243497,0.00014995,112450.0,112440.0,0.0301519]
[1760281243711,0.00014995,112450.0,112440.0,0.45968142]
[1760281243943,0.17785682,112450.0,112440.0,0.09842]
[1760281244153,0.1867352,112460.0,112430.0,0.0301519]
[1760281244365,0.17786044,112450.0,112430.0,0.12872185]
[1760281244571,0.17785682,112450.0,112440.0,0.09842]
[1760281244997,0.17784548,112460.0,112440.0,0.18794952]
[1760281245237,0.1859609,112470.0,112450.0,0.13256]
[1760281245453,0.18670179,112480.0,112460.0,0.09842]
[1760281245669,0.17782519,112470.0,112450.0,0.12366952]
[1760281245928,0.17782519,112470.0,112460.0,0.09842]
[1760281246152,0.17784101,112460.0,112450.0,0.13256]
[1760281246380,0.17785682,112450.0,112440.0,0.4]
[1760281246603,0.18671644,112470.0,112450.0,0.09842]
[1760281246815,0.18672534,112500.0,112460.0,0.21910142]
[1760281247030,0.17776244,112510.0,112490.0,0.03306]
[1760281247248,0.17776264,112510.0,112500.0,0.14118]
[1760281247471,0.17776264,112510.0,112500.0,0.54118]
[1760281247941,0.18663906,112520.0,112500.0,0.54118]
[1760281248147,0.18671018,112530.0,112500.0,0.44276]
[1760281248369,0.17824704,112520.0,112510.0,0.03371]
[1760281248588,0.18671018,112530.0,112500.0,0.44276]
[1760281248589,0.17776197,112510.0,112500.0,0.44276]
[1760281248818,0.00903667,112530.0,112500.0,0.54118]
[1760281249049,0.17788054,112530.0,112520.0,0.03371]
[1760281249267,0.17788054,112530.0,112520.0,0.13213]
[1760281249711,0.17775542,112520.0,112500.0,0.54118]
[1760281249926,0.17774617,112520.0,112510.0,0.13213]
[1760281250169,0.17774617,112520.0,112510.0,0.03371]
[1760281250404,0.00015016,112530.0,112510.0,0.56165952]
[1760281250617,0.00015016,112530.0,112520.0,0.09842]
[1760281250834,0.17579501,112550.0,112520.0,0.09842]
[1760281251050,0.17772467,112540.0,112520.0,0.09842]
[1760281251273,0.17579501,112550.0,112520.0,0.09842]
[1760281251274,0.17770123,112550.0,112530.0,0.09842]
[1760281251545,0.17769914,112550.0,112530.0,0.09842]
[1760281251781,0.18660407,112580.0,112540.0,0.13256]
[1760281252002,0.18668431,112580.0,112550.0,0.43842]
[1760281252223,0.17768301,112560.0,112540.0,0.03414]
[1760281252442,0.17768301,112560.0,112550.0,0.4]
[1760281253774,0.18656554,112570.0,112550.0,0.4]
[1760281253992,0.1776673,112570.0,112550.0,0.49942]
[1760281254229,0.01133726,112560.0,112550.0,0.49942]
[1760281254445,0.01133726,112560.0,112550.0,0.52068142]
[1760281254876,0.01133726,112560.0,112550.0,0.61910142]
[1760281255343,0.01133726,112560.0,112550.0,0.61810142]
[1760281255568,0.00015005,112580.0,112560.0,0.0301519]
[1760281255780,0.1778015,112580.0,112570.0,0.04078]
[1760281255998,0.00015005,112580.0,112570.0,0.1392]
[1760281256220,0.17780149,112580.0,112570.0,0.1392]
[1760281256436,0.17780149,112580.0,112560.0,0.4]
[1760281256907,0.17766722,112570.0,112560.0,0.4]
[1760281257532,0.1776988,112550.0,112540.0,0.03414]
[1760281257975,0.17769677,112560.0,112540.0,0.03414]
[1760281258190,0.1776988,112550.0,112540.0,0.4]
[1760281258403,0.17774617,112520.0,112510.0,0.10533362]
[1760281258614,0.17771459,112540.0,112530.0,0.04078]
[1760281259041,0.17770219,112550.0,112530.0,0.1392]
[1760281259934,0.17769977,112550.0,112530.0,0.1392]
[1760281260164,0.17769977,112550.0,112530.0,0.13783]
[1760281260373,0.18655058,112570.0,112530.0,0.38178]
[1760281260602,0.00015005,112570.0,112560.0,0.03414]
[1760281260839,0.00015005,112570.0,112560.0,0.13119]
[1760281261268,0.00072652,112570.0,112560.0,0.13119]
[1760281261474,0.00888178,112590.0,112560.0,0.22071952]
[1760281261684,0.17765144,112580.0,112570.0,0.03234]
[1760281262131,0.17768301,112560.0,112540.0,0.03414]
[1760281262339,0.1776988,112550.0,112540.0,0.00015005]
[1760281262751,0.18655058,112570.0,112540.0,0.09720005]
[1760281262961,0.00888257,112580.0,112550.0,0.09705]
[1760281263171,0.00888178,112590.0,112560.0,0.09705]
[1760281263411,0.17765144,112580.0,112570.0,0.12939]
[1760281263619,0.18651833,112590.0,112570.0,0.12939]
[1760281263822,0.17767483,112570.0,112550.0,0.09705]
[1760281264031,0.14493071,112580.0,112550.0,0.20101362]
[1760281264239,0.17767483,112570.0,112550.0,0.20101362]
[1760281264491,0.17767483,112570.0,112550.0,0.12939]
[1760281264912,0.17767483,112570.0,112550.0,0.43234]
[1760281265125,0.18651148,112600.0,112560.0,0.52657952]
[1760281265333,0.1865378,112610.0,112570.0,0.09705]
[1760281265545,0.18651817,112590.0,112560.0,0.42952952]
[1760281265808,0.18648848,112610.0,112570.0,0.09752469]
[1760281266039,0.18648848,112610.0,112580.0,0.17366]
[1760281266250,0.17763566,112590.0,112580.0,0.04268]
[1760281266464,0.61171566,112590.0,112580.0,0.04268]
[1760281266883,0.51763566,112590.0,112580.0,0.04268]
[1760281267077,0.17763566,112590.0,112580.0,0.04268]
[1760281267628,0.32089566,112590.0,112580.0,0.04268]
[1760281267831,0.17763566,112590.0,112580.0,0.04268]
[1760281268057,0.17878833,112590.0,112580.0,0.04268]
[1760281268879,0.00115267,112590.0,112580.0,0.04268]
[1760281269082,0.17878833,112590.0,112580.0,0.04268]
[1760281269306,0.00115267,112590.0,112580.0,0.04268]
[1760281269492,0.17878833,112590.0,112580.0,0.13973]
[1760281270010,0.00115267,112590.0,112580.0,0.13973]
[1760281270221,0.17878833,112590.0,112580.0,0.13973]
[1760281270382,0.17878833,112590.0,112580.0,0.53973]
[1760281270578,0.00115267,112590.0,112580.0,0.53973]
[1760281270804,0.17878833,112590.0,112580.0,0.53973]
[1760281271229,0.00115267,112590.0,112580.0,0.99941142]
[1760281271605,0.00115267,112590.0,112580.0,1.17706286]
[1760281272132,0.00115267,112590.0,112580.0,0.99941142]
[1760281272325,0.00115267,112590.0,112580.0,1.00041142]
[1760281272507,0.17761989,112600.0,112590.0,0.34]
[1760281272707,0.00015002,112600.0,112590.0,0.47098]
[1760281273628,0.00015002,112600.0,112590.0,0.59066142]
[1760281274017,0.00015002,112600.0,112590.0,0.59166142]
[1760281274835,0.00015002,112600.0,112590.0,0.8409207]
[1760281275066,0.00015002,112600.0,112590.0,0.76929708]
[1760281276179,0.00015002,112600.0,112590.0,1.26929707]
[1760281276804,0.00015002,112600.0,112590.0,1.26829707]
[1760281277013,0.00015002,112600.0,112590.0,1.29329706]
[1760281277341,0.00015002,112600.0,112590.0,1.09266141]
[1760281277529,0.00015002,112600.0,112590.0,0.99266142]
[1760281277729,0.00015002,112600.0,112590.0,0.99066142]
[1760281277929,0.00015002,112600.0,112590.0,0.65066142]
[1760281278132,0.00072626,112600.0,112590.0,0.96250952]
[1760281278323,0.00072626,112600.0,112590.0,0.77029708]
[1760281278523,0.00072626,112600.0,112590.0,0.89529706]
[1760281279025,0.00072626,112600.0,112590.0,1.29529706]
[1760281279230,0.00072626,112600.0,112590.0,0.99266142]
[1760281279447,0.00072626,112600.0,112590.0,0.99066142]
[1760281279871,0.00072626,112600.0,112590.0,1.17029708]
[1760281280085,0.00072626,112600.0,112590.0,0.99266142]
[1760281280287,0.00072626,112600.0,112590.0,1.16829708]
[1760281280706,0.17834615,112600.0,112590.0,0.65266142]
[1760281280904,0.00072626,112600.0,112590.0,0.65266142]
[1760281281157,0.00072626,112600.0,112590.0,0.65066142]
[1760281281370,0.0002,112640.0,112620.0,0.0301519]
[1760281281579,0.18657062,112680.0,112640.0,0.3701519]
[1760281281760,0.18657062,112680.0,112670.0,0.03393]
[1760281281761,0.00070028,112680.0,112670.0,0.03393]
[1760281281990,0.17819406,112680.0,112670.0,0.03393]
[1760281283529,0.17819406,112680.0,112670.0,0.03493]
[1760281283950,0.17819406,112680.0,112670.0,0.03393]
[1760281284158,0.18638841,112690.0,112670.0,0.03393]
[1760281284365,0.17749378,112680.0,112670.0,0.13198]
[1760281284922,0.17749378,112680.0,112670.0,0.43493]
[1760281286279,0.17750954,112670.0,112660.0,0.04268]
[1760281286921,0.66076954,112670.0,112660.0,0.04268]
[1760281287139,0.56668954,112670.0,112660.0,0.04268]
[1760281287377,0.6648005,112670.0,112660.0,0.04268]
[1760281287743,0.48729096,112670.0,112660.0,0.04268]
[1760281287944,0.17755681,112640.0,112630.0,0.07162362]
[1760281288148,0.06172873,112640.0,112630.0,0.07162362]
[1760281288375,0.17757258,112630.0,112620.0,0.43234]
[1760281288829,0.17757258,112630.0,112610.0,0.07502]
[1760281288830,0.17758835,112620.0,112610.0,0.07502]
[1760281288976,0.17761989,112600.0,112590.0,0.00095002]
[1760281289173,0.17761989,112600.0,112590.0,0.0014503]
[1760281289781,0.26791989,112600.0,112590.0,0.0014503]
[1760281289970,0.60791989,112600.0,112590.0,0.0014503]
[1760281290171,0.17761989,112600.0,112590.0,0.0014503]
[1760281292069,0.17761989,112600.0,112590.0,0.0384403]
[1760281292263,0.17761989,112600.0,112590.0,0.0014503]
[1760281292523,0.17760619,112610.0,112590.0,0.1377603]
[1760281292698,0.17761989,112600.0,112590.0,0.1377603]
[1760281293237,0.17761989,112600.0,112590.0,0.0384403]
[1760281293636,0.17760619,112610.0,112590.0,0.12896982]
[1760281293637,0.17760562,112610.0,112590.0,0.12896982]
[1760281293811,0.1864512,112630.0,112600.0,0.09932]
[1760281294018,0.17758861,112620.0,112600.0,0.09932]
[1760281294225,0.17758861,112620.0,112610.0,0.03234]
[1760281294226,0.17758835,112620.0,112610.0,0.03234]
[1760281294644,0.1864512,112630.0,112610.0,0.13166]
[1760281294863,0.17757378,112630.0,112610.0,0.13166]
[1760281295039,0.17757304,112630.0,112610.0,0.13166]
[1760281295406,0.07060657,112640.0,112620.0,0.09932]
[1760281295609,0.17754218,112650.0,112630.0,0.13478]
[1760281295813,0.17755681,112640.0,112620.0,0.03546]
[1760281296033,0.17757258,112630.0,112620.0,0.03546]
[1760281296539,0.17757258,112630.0,112610.0,0.03234]
[1760281296540,0.17758835,112620.0,112610.0,0.03234]
[1760281296740,0.17758835,112620.0,112610.0,0.03284028]
[1760281297165,0.17757409,112630.0,112610.0,0.13216028]
[1760281297490,0.18643465,112640.0,112620.0,0.09932]
[1760281297695,0.1775257,112660.0,112630.0,0.13478]
[1760281297872,0.17754128,112650.0,112630.0,0.22430952]
[1760281298307,0.17754105,112650.0,112640.0,0.09932]
[1760281298662,0.18640196,112660.0,112640.0,0.09932]
[1760281298855,0.18640196,112660.0,112650.0,0.09932]
[1760281299066,0.18640196,112660.0,112650.0,0.13478]
[1760281299903,0.18642756,112680.0,112650.0,0.13478]
[1760281300052,0.17767525,112660.0,112650.0,0.13578]
[1760281300261,0.18113066,112660.0,112650.0,0.401]
[1760281300681,0.18113066,112660.0,112600.0,0.04268]
[1760281300682,0.17761989,112600.0,112590.0,1e-08]
[1760281301833,0.17761989,112600.0,112590.0,0.00050029]
[1760281302396,0.08591294,112610.0,112590.0,0.13681029]
[1760281302621,0.17761989,112600.0,112590.0,0.03749029]
[1760281302847,0.17761989,112600.0,112590.0,0.00050029]
[1760281303287,0.17761989,112600.0,112590.0,0.00250029]
[1760281303611,0.17761989,112600.0,112590.0,0.00050029]
[1760281303819,0.1775311,112600.0,112590.0,0.00050029]
[1760281304636,0.1775311,112600.0,112590.0,0.03749029]
[1760281305043,0.1775311,112600.0,112590.0,0.00050029]
[1760281305703,0.1775311,112600.0,112590.0,0.03749029]
[1760281306301,0.1775311,112600.0,112590.0,0.00050029]
[1760281306933,0.2765211,112600.0,112590.0,0.00050029]
[1760281307136,0.1775311,112600.0,112590.0,0.00050029]
[1760281307690,0.17761989,112600.0,112590.0,0.00050029]
[1760281307905,0.17761989,112600.0,112590.0,0.13502029]
[1760281308100,0.17761989,112600.0,112590.0,0.03749029]
[1760281308306,0.00138315,112610.0,112590.0,0.03749029]
[1760281308500,0.17761989,112600.0,112590.0,0.03749029]
[1760281308933,0.17761989,112600.0,112590.0,0.13502029]
[1760281309143,0.17761989,112600.0,112590.0,0.03749029]
[1760281309342,0.17761989,112600.0,112590.0,0.13502029]
[1760281309565,0.17761989,112600.0,112590.0,0.00050029]
[1760281310400,0.17761989,112600.0,112590.0,0.13502029]
[1760281311928,0.00138315,112610.0,112590.0,0.40218472]
[1760281312147,0.25805549,112650.0,112610.0,0.17760366]
[1760281312363,0.07162362,112650.0,112640.0,0.03234]
[1760281312574,0.40465433,112680.0,112640.0,0.52987]
[1760281312575,0.17752671,112660.0,112640.0,0.52987]
[1760281312824,0.25804433,112680.0,112650.0,0.31053011]
[1760281313050,0.18642071,112680.0,112670.0,0.03699]
[1760281313285,0.18636846,112680.0,112670.0,0.03699]
[1760281313497,0.18636846,112680.0,112670.0,0.13452]
[1760281313498,0.00014999,112680.0,112670.0,0.13452]
[1760281314707,0.17764377,112680.0,112670.0,0.13452]
[1760281314862,0.00014999,112680.0,112670.0,0.13452]
[1760281315094,0.17749378,112680.0,112670.0,0.03699]
[1760281316286,0.17749378,112680.0,112670.0,0.03799]
[1760281316915,0.17749378,112680.0,112670.0,0.03699]
[1760281317118,0.17749378,112680.0,112670.0,0.13452]
[1760281317457,0.09898789,112690.0,112670.0,0.13991985]
[1760281317608,0.18663933,112700.0,112680.0,0.09753]
[1760281317803,0.00498006,112680.0,112670.0,0.03799]
[1760281318012,0.17749378,112680.0,112670.0,0.03799]
[1760281318214,0.17749378,112680.0,112670.0,0.13552]
[1760281318755,0.17749378,112680.0,112670.0,0.13452]
[1760281318984,0.17749378,112680.0,112670.0,0.03699]
[1760281319417,0.17749378,112680.0,112670.0,0.13452]
[1760281319628,0.17748562,112690.0,112670.0,0.13452]
[1760281319887,0.18663933,112700.0,112680.0,0.09452]
[1760281320105,0.17747803,112690.0,112680.0,0.09452]
[1760281320323,0.0002,112700.0,112680.0,0.27201148]
[1760281320550,0.0002,112700.0,112690.0,0.13136006]
[1760281320766,0.1774851,112740.0,112700.0,0.54761377]
[1760281320994,0.18650493,112740.0,112720.0,0.0339]
[1760281321225,0.00022987,112740.0,112730.0,0.12842]
[1760281321723,0.17762919,112740.0,112730.0,0.0339]
[1760281321939,0.17762919,112740.0,112730.0,0.4]
[1760281322590,0.17762919,112740.0,112730.0,0.49452]
[1760281323072,0.17762919,112740.0,112730.0,0.4]
[1760281323283,0.17741506,112730.0,112720.0,0.0339]
[1760281323722,0.17746228,112700.0,112690.0,0.10708362]
[1760281323956,0.17746228,112700.0,112690.0,0.07162362]
[1760281324189,0.17749378,112680.0,112670.0,0.03699]
[1760281324669,0.17749378,112680.0,112670.0,0.13151]
[1760281325345,0.17749378,112680.0,112670.0,0.03699]
[1760281325564,0.17750954,112670.0,112660.0,0.04268]
[1760281325783,0.17750954,112670.0,112660.0,0.04318028]
[1760281326221,0.66091954,112670.0,112660.0,1e-08]
[1760281326438,0.17750954,112670.0,112660.0,0.12842001]
[1760281326691,0.17749781,112680.0,112660.0,0.12842001]
[1760281326906,0.1863811,112690.0,112670.0,0.09594414]
[1760281327121,0.18637439,112700.0,112670.0,0.09594414]
[1760281327334,0.18637423,112710.0,112690.0,0.03468]
[1760281327537,0.18631913,112710.0,112690.0,0.1292]
[1760281327756,0.18631913,112710.0,112700.0,0.09452]
[1760281328172,0.17746889,112730.0,112700.0,0.09452]
[1760281328393,8e-05,112740.0,112720.0,0.03699]
[1760281328602,8e-05,112740.0,112710.0,0.13216952]
[1760281328603,0.04811,112730.0,112710.0,0.13216952]
[1760281328807,0.1774308,112720.0,112710.0,0.47963]
[1760281329446,0.1774308,112720.0,112710.0,0.57415]
[1760281329855,0.18471155,112720.0,112710.0,0.57415]
[1760281330065,0.00728075,112720.0,112710.0,0.57415]
[1760281330305,0.00728075,112720.0,112710.0,0.9443019]
[1760281330536,0.00886996,112740.0,112710.0,1.03383142]
[1760281330754,0.1774154,112730.0,112720.0,0.09452]
[1760281330949,0.18642038,112740.0,112720.0,0.09452]
[1760281331154,0.18642038,112740.0,112730.0,0.12842]
[1760281331358,0.00014993,112740.0,112730.0,0.12842]
[1760281331574,0.0013003,112740.0,112730.0,0.24810142]
[1760281331775,0.0013003,112740.0,112730.0,0.58810142]
[1760281331984,0.17869962,112740.0,112730.0,0.12842]
[1760281332191,0.1774308,112720.0,112710.0,0.51073059]
[1760281332398,0.1774308,112720.0,112710.0,0.48157869]
[1760281332600,0.1774308,112720.0,112710.0,0.57609869]
[1760281332844,0.1774308,112720.0,112710.0,0.57509869]
[1760281333269,0.1774308,112720.0,112710.0,0.48057869]
[1760281333463,0.1774308,112720.0,112710.0,0.04358869]
[1760281333701,0.6127308,112720.0,112710.0,0.04358869]
[1760281334225,0.6127308,112720.0,112680.0,0.07162362]
[1760281334226,0.17747803,112690.0,112680.0,0.07162362]
[1760281334451,0.17747803,112690.0,112680.0,0.16614362]
[1760281334677,0.17747563,112700.0,112680.0,0.56656973]
[1760281334906,0.17747803,112690.0,112680.0,0.49452]
[1760281335364,0.17747803,112690.0,112680.0,0.49502019]
[1760281335590,0.17747803,112690.0,112680.0,0.40050019]
[1760281336032,0.17747803,112690.0,112680.0,0.40150019]
[1760281336475,0.17747803,112690.0,112680.0,0.40050019]
[1760281336954,0.17747803,112690.0,112680.0,0.40150019]
[1760281337402,0.66088803,112690.0,112680.0,0.00150019]
[1760281337849,0.66088803,112690.0,112630.0,0.08050224]
[1760281337850,0.17755681,112640.0,112630.0,0.07162362]
[1760281338088,0.17805638,112640.0,112630.0,0.07162362]
[1760281338318,0.17758835,112620.0,112610.0,0.10861362]
[1760281338533,0.17758614,112630.0,112610.0,0.20313362]
[1760281338757,0.00049957,112640.0,112620.0,0.18404952]
[1760281338977,0.17805673,112640.0,112630.0,0.09452]
[1760281339205,0.00049957,112640.0,112630.0,0.09452]
[1760281339430,0.00049957,112640.0,112630.0,0.55420142]
[1760281339667,0.00049957,112640.0,112630.0,0.731774]
[1760281340295,0.00049957,112640.0,112630.0,0.55420142]
[1760281340534,0.00049957,112640.0,112630.0,0.21420142]
[1760281341180,0.17805638,112640.0,112630.0,0.09452]
[1760281341393,0.17805638,112640.0,112620.0,0.4]
[1760281341604,0.17757258,112630.0,112620.0,0.4]
[1760281342297,0.00049957,112640.0,112630.0,0.001]
[1760281342502,0.17805638,112640.0,112630.0,0.09552]
[1760281342925,0.17757258,112630.0,112620.0,0.4]
[1760281343131,0.28067125,112630.0,112620.0,0.4]
[1760281343349,0.28067125,112630.0,112620.0,0.83552]
[1760281343585,0.07844742,112630.0,112620.0,1.13797236]
[1760281343796,0.00049957,112640.0,112630.0,0.54772448]
[1760281344008,0.00049957,112640.0,112630.0,0.731774]
[1760281345100,0.00049957,112640.0,112630.0,0.732774]
[1760281345310,0.00049957,112640.0,112630.0,0.75777399]
[1760281345527,0.00049957,112640.0,112630.0,0.75677399]
[1760281345755,0.00049957,112640.0,112630.0,1.15677399]
[1760281345971,0.00049957,112640.0,112630.0,1.15777399]
[1760281346426,0.00049957,112640.0,112630.0,1.15677399]
[1760281347567,0.24907033,112710.0,112680.0,0.51748388]
[1760281347790,0.07162362,112710.0,112700.0,0.38675]
[1760281348016,0.17838043,112720.0,112700.0,0.57079952]
[1760281348241,0.1785303,112720.0,112710.0,0.09452]
[1760281349159,0.17744654,112710.0,112700.0,0.90643142]
[1760281349394,0.17744654,112710.0,112700.0,1.00095142]
[1760281349646,0.1785303,112720.0,112710.0,0.001]
[1760281349866,0.1785303,112720.0,112710.0,0.098]
[1760281350088,0.00109851,112720.0,112710.0,0.21768142]
[1760281350309,0.00109851,112720.0,112710.0,0.73512796]
[1760281350975,0.00109851,112720.0,112710.0,0.73412796]
[1760281351423,0.00109851,112720.0,112710.0,0.55668142]
[1760281351651,0.27183931,112720.0,112710.0,0.08952952]
[1760281351861,0.17744654,112710.0,112700.0,0.00057544]
[1760281353348,0.22573654,112710.0,112700.0,0.00057544]
[1760281353584,0.31904654,112710.0,112700.0,0.00057544]
[1760281354242,0.65904654,112710.0,112700.0,1e-08]
[1760281354658,0.17746228,112700.0,112690.0,1e-08]
[1760281355074,0.27077228,112700.0,112690.0,1e-08]
[1760281356230,0.51750954,112670.0,112660.0,0.07162362]
[1760281356455,0.17755681,112640.0,112630.0,0.63763362]
[1760281356675,0.17755681,112640.0,112630.0,0.61426362]
[1760281357106,0.17755681,112640.0,112630.0,0.54264]
[1760281357574,0.18638501,112670.0,112630.0,0.72931951]
[1760281357794,0.18638161,112680.0,112640.0,0.55668142]
[1760281358031,0.18638161,112680.0,112660.0,0.02586]
[1760281358032,0.17750959,112670.0,112660.0,0.02586]
[1760281358238,0.17749537,112680.0,112660.0,0.21238952]
[1760281358469,0.17752161,112700.0,112670.0,0.18652952]
[1760281358682,0.17749378,112680.0,112670.0,0.18652952]
[1760281358905,0.17752161,112700.0,112670.0,0.58652952]
[1760281359394,0.17752161,112700.0,112680.0,0.097]
[1760281359609,0.17747803,112690.0,112680.0,0.13144]
[1760281360091,0.17747803,112690.0,112680.0,0.03444]
[1760281360292,0.17747803,112690.0,112680.0,0.13144]
[1760281360496,0.17747803,112690.0,112680.0,0.13259112]
[1760281360699,0.17752161,112700.0,112680.0,0.25227254]
[1760281360898,0.17752161,112700.0,112690.0,0.097]
[1760281361130,0.17746228,112700.0,112690.0,0.56096952]
[1760281361334,0.17747803,112690.0,112680.0,0.03444]
[1760281361539,0.17747803,112690.0,112680.0,0.22096952]
[1760281361788,0.17747803,112690.0,112680.0,0.03544]
[1760281362260,0.17747803,112690.0,112680.0,0.001]
[1760281362498,0.22576803,112690.0,112680.0,0.001]
[1760281362717,0.17749378,112680.0,112670.0,0.03444]
[1760281362957,0.17747803,112690.0,112670.0,0.03444]
[1760281362958,0.17747803,112690.0,112680.0,0.097]
[1760281363876,0.18633539,112700.0,112680.0,0.18652952]
[1760281364109,0.1774642,112700.0,112690.0,0.12396952]
[1760281364298,0.1774642,112700.0,112690.0,0.21790952]
[1760281364430,0.1774642,112700.0,112690.0,0.26054952]
[1760281365101,0.1774642,112700.0,112690.0,0.17002]
[1760281365249,0.1774642,112700.0,112690.0,0.07708]
[1760281365451,0.1774642,112700.0,112690.0,0.17002]
[1760281366194,0.1774642,112700.0,112690.0,0.17059551]
[1760281366417,0.1774642,112700.0,112690.0,0.04321551]
[1760281366613,0.18735332,112710.0,112690.0,0.26012503]
[1760281366814,0.17746228,112700.0,112690.0,0.19733693]
[1760281367014,0.1774349,112720.0,112700.0,0.0301519]
[1760281367210,0.17744654,112710.0,112700.0,0.11968142]
[1760281367414,0.17758751,112720.0,112700.0,0.21262142]
[1760281367594,0.05131462,112730.0,112710.0,0.22796952]
[1760281367806,0.17743764,112720.0,112710.0,0.25812142]
[1760281368164,0.17743764,112720.0,112710.0,0.65812142]
[1760281368569,0.17743764,112720.0,112710.0,0.62796952]
[1760281368696,0.06018537,112730.0,112710.0,0.62796952]
[1760281368912,0.06018537,112730.0,112720.0,0.09294]
[1760281369103,0.1773994,112740.0,112720.0,0.18246952]
[1760281369313,0.1773994,112740.0,112730.0,0.1188]
[1760281369560,0.18634183,112750.0,112730.0,0.1188]
[1760281369758,0.18634183,112750.0,112740.0,0.09294]
[1760281369957,0.17738359,112750.0,112740.0,0.09294]
[1760281370201,0.18649331,112770.0,112740.0,0.18246952]
[1760281370339,0.18649331,112770.0,112750.0,0.13107]
[1760281370340,0.17737851,112760.0,112750.0,0.13107]
[1760281370721,0.18699279,112770.0,112750.0,0.13107]
[1760281370959,0.18699279,112770.0,112760.0,0.03813]
[1760281371167,0.17805161,112770.0,112760.0,0.13107]
[1760281371584,0.17805161,112770.0,112760.0,0.53107]
[1760281372173,0.00069948,112770.0,112760.0,0.62059952]
[1760281372516,0.17805161,112770.0,112760.0,0.62159952]
[1760281373977,0.17805161,112770.0,112760.0,0.62059952]
[1760281374179,0.17805161,112770.0,112760.0,0.43813]
[1760281374382,0.17805161,112770.0,112760.0,0.43913]
[1760281374807,0.17805161,112770.0,112760.0,0.53107]
[1760281375008,0.17805161,112770.0,112760.0,0.62059952]
[1760281375186,0.17805161,112770.0,112760.0,0.62159952]
[1760281377154,0.17735213,112770.0,112760.0,0.62159952]
[1760281377581,0.17735213,112770.0,112760.0,0.68200952]
[1760281377814,0.17735213,112770.0,112760.0,0.001]
[1760281378057,0.33786213,112770.0,112760.0,0.001]
[1760281378284,0.24413213,112770.0,112760.0,0.001]
[1760281378495,0.18080249,112770.0,112760.0,0.001]
[1760281378672,0.18080249,112770.0,112760.0,0.03913]
[1760281378883,0.18080249,112770.0,112760.0,0.03813]
[1760281379332,0.18080249,112770.0,112760.0,0.09854]
[1760281379741,0.18080249,112770.0,112760.0,0.19375]
[1760281379983,0.00345036,112770.0,112760.0,0.28327952]
[1760281380500,0.00345036,112770.0,112760.0,0.83079928]
[1760281380966,0.00345036,112770.0,112760.0,0.65343142]
[1760281381188,0.18080249,112770.0,112760.0,1.05343142]
[1760281381416,0.18080249,112770.0,112760.0,1.02427952]
[1760281381637,0.18080249,112770.0,112760.0,0.59475]
[1760281381891,0.18080249,112770.0,112760.0,0.001]
[1760281382122,0.18080249,112770.0,112740.0,0.03813]
[1760281382123,0.17738359,112750.0,112740.0,0.03813]
[1760281382327,0.17741506,112730.0,112720.0,0.10975362]
[1760281382756,0.17741506,112730.0,112720.0,0.13334]
[1760281382979,0.17741506,112730.0,112720.0,0.43813]
[1760281383190,0.17741506,112730.0,112720.0,0.4]
[1760281383620,0.17741506,112730.0,112720.0,0.40049948]
[1760281383861,0.17741506,112730.0,112720.0,0.43862948]
[1760281384079,0.17741506,112730.0,112720.0,0.40049948]
[1760281384318,0.32143506,112730.0,112720.0,0.00049948]
[1760281384980,0.32143506,112730.0,112700.0,0.07257242]
[1760281384981,0.34,112710.0,112700.0,0.07257242]
[1760281385186,0.22656654,112710.0,112700.0,0.07272229]
[1760281385389,0.17744654,112710.0,112700.0,0.09858229]
[1760281385608,0.1774308,112720.0,112700.0,0.53379229]
[1760281385841,0.17741821,112730.0,112710.0,0.22286952]
[1760281386052,0.17741506,112730.0,112720.0,0.1634919]
[1760281386260,0.18626928,112740.0,112720.0,0.25302142]
[1760281386472,0.18627585,112770.0,112740.0,0.0301519]
[1760281386683,0.17736941,112760.0,112750.0,0.09521]
[1760281386926,0.18627585,112770.0,112750.0,0.18473952]
[1760281386927,0.17736076,112770.0,112750.0,0.18473952]
[1760281387143,0.17733972,112780.0,112760.0,0.09521]
[1760281387357,0.18623167,112790.0,112770.0,0.03199]
[1760281387567,0.1773364,112780.0,112770.0,0.07459]
[1760281387780,0.1773364,112780.0,112770.0,0.0426]
[1760281387991,0.18136147,112780.0,112770.0,0.0426]
[1760281388232,0.18673146,112790.0,112770.0,0.25749142]
[1760281388233,0.17782095,112790.0,112770.0,0.25749142]
[1760281388437,0.17730933,112800.0,112780.0,0.18473952]
[1760281388639,0.1862632,112800.0,112790.0,0.03813]
[1760281389486,8.863e-05,112800.0,112790.0,0.13334]
[1760281390136,8.863e-05,112800.0,112790.0,0.4303421]
[1760281390345,8.863e-05,112800.0,112790.0,0.65302142]
[1760281390559,8.863e-05,112800.0,112790.0,0.8303421]
[1760281390787,8.863e-05,112800.0,112790.0,0.65302142]
[1760281391410,0.17739359,112800.0,112790.0,0.65302142]
[1760281391624,0.17739359,112800.0,112790.0,0.401]
[1760281392080,0.17739359,112800.0,112790.0,0.4]
[1760281392297,0.17732068,112790.0,112780.0,0.03813]
[1760281392731,0.1773364,112780.0,112770.0,0.08073]
[1760281393144,0.1773364,112780.0,112770.0,0.48073]
[1760281393364,0.1773364,112780.0,112770.0,0.57594]
[1760281393575,0.1773364,112780.0,112770.0,0.48073]
[1760281393986,0.1773364,112780.0,112770.0,0.57688803]
[1760281394209,0.17789546,112790.0,112770.0,0.57688803]
[1760281394417,0.1773364,112780.0,112770.0,0.48167803]
[1760281394658,0.1773364,112780.0,112770.0,0.48267803]
[1760281395071,0.1773364,112780.0,112770.0,0.57688803]
[1760281395285,0.17789546,112790.0,112770.0,0.57688803]
[1760281395489,0.17789546,112790.0,112780.0,0.09521]
[1760281396121,0.00057478,112790.0,112780.0,0.18473952]
[1760281396328,0.17789546,112790.0,112780.0,0.18473952]
[1760281396739,0.18626315,112800.0,112780.0,0.18473952]
[1760281396740,0.17730521,112800.0,112780.0,0.18473952]
[1760281396950,0.17730841,112800.0,112790.0,0.13334]
[1760281397154,0.17730841,112800.0,112790.0,0.53334]
[1760281397566,0.17788311,112800.0,112790.0,0.53334]
[1760281397775,0.17788311,112800.0,112790.0,0.4]
[1760281397978,0.17732068,112790.0,112780.0,0.00094792]